Cogmind - Beta 14 @@@ ROGUE MODE // 2025.03.19 @ 16:56:04 Player: Lava Result: Destroyed by P-60 Hacker with Shock Rifle Performance ------------- Evolutions (0) 0 Regions Visited (3) 600 Robots Destroyed (22) 110 Value Destroyed (475) 475 Prototype IDs (23) 460 Alien Tech Used (0) 0 Bonus (300) 300 TOTAL SCORE: 1945 Bonus ------- Aligned with FarCom 300 Cogmind --------- Core Integrity 0/250 Matter 173/300 Energy 100/100 System Corruption 2% Temperature Cool (0) Movement Walking (400) Ox4 Location -10/Exiles Parts ------- > --- POWER (1) -------- (None) > --- PROPULSION (2) --- Aluminum Leg > --- UTILITY (2) ------ High-capacity Storage Unit Signal Interpreter > --- WEAPON (2) ------- Assault Rifle Light Assault Rifle > --- INVENTORY (20) --- Light Treads Medium Storage Unit Weight Redist. System Structural Scanner Visual Processing Unit Visual Processing Unit Sensor Array Sensor Array Sensor Array Signal Interpreter Tractor Beam Trap Reconfigurator EM Pulse Gun Light Assault Rifle Light Assault Rifle Peak State ------------ > --- POWER ------------ Light Ion Engine > --- PROPULSION ------- Light Treads Light Treads > --- UTILITY ---------- High-capacity Storage Unit Signal Interpreter > --- WEAPON ----------- Assault Rifle Light Assault Rifle > --- INVENTORY -------- Light Treads Aluminum Leg Aluminum Leg Medium Storage Unit Weight Redist. System Structural Scanner Visual Processing Unit Visual Processing Unit Sensor Array Sensor Array Sensor Array Signal Interpreter Tractor Beam Trap Reconfigurator EM Pulse Gun Light Assault Rifle Light Assault Rifle Light Assault Rifle Grenade Launcher Grenade Launcher [Rating: 10] Favorites ----------- Power Ion Engine Engine Ion Engine Propulsion Light Treads Treads Light Treads Leg Aluminum Leg Utility Signal Interpreter Storage High-capacity Storage Unit Processor Signal Interpreter Weapon Light Assault Rifle Ballistic Gun Light Assault Rifle Launcher Grenade Launcher Build | -11 -10 -10 -10 ------- Run | Yrd Mat Min Exi Slots Evolved . | . . . . Power . | . . . . Propulsion . | . . . . Utility . | . . . . Weapon . | . . . . Parts Attached 22 | 8 6 . 8 Power 2 | 1 1 . . Engine 2 | 1 1 . . Core . | . . . . Reactor . | . . . . Propulsion 7 | 4 1 . 2 Treads 3 | 2 1 . . Leg 4 | 2 . . 2 Wheel . | . . . . Hover . | . . . . Flight . | . . . . Utility 5 | 1 4 . . Device . | . . . . Storage 4 | 1 3 . . Processor 1 | . 1 . . Hackware . | . . . . Protection . | . . . . Artifact . | . . . . Weapon 8 | 2 . . 6 Energy Gun . | . . . . Energy Cannon . | . . . . Ballistic Gun 6 | 2 . . 4 Ballistic Cannon . | . . . . Launcher 2 | . . . 2 Special Weapon . | . . . . Impact Weapon . | . . . . Slashing Weapon . | . . . . Piercing Weapon . | . . . . Special Melee Weapon . | . . . . Unidentified Prototypes . | . . . . Parts Lost 9 | . 2 . 7 Power 2 | . 1 . 1 Propulsion 4 | . 1 . 3 Utility . | . . . . Weapon 3 | . . . 3 Highest Loss Streak 7 | . 2 . 7 To Critical Strikes . | . . . . Average Slot Usage (%) 98 | . 98 100 97 Engine 13 | . 13 14 12 Treads 27 | . 28 28 25 Storage 14 | . 14 14 14 Processor 13 | . 12 14 14 Ballistic Gun 27 | . 28 28 26 Peak Build Rating 10 | 6 9 9 10 Average Rating 8 | 3 8 9 9 On Entrance 6 | . 6 9 9 Naked Turns . | . . . . Heaviest Build 49 | 12 47 45 49 Greatest Support 40 | 40 40 40 40 Greatest Overweight (x) 2 | . 1 1 2 Average Overweight (x) . | . . 1 1 Largest Inventory Capacity 20 | 8 20 20 20 Average Capacity 17 | 7 17 20 20 Most Carried 20 | 8 19 20 20 Average Carried 16 | 5 15 19 19 Final Capacity 20 | 8 20 20 20 Final Carried 20 | 6 19 20 15 Class Distribution -------------------- 100% | Mutant Dominant Class ---------------- Mutant | -10/Materials Mutant | -10/Mines Mutant | -10/Exiles Resources | -11 -10 -10 -10 ----------- Run | Yrd Mat Min Exi Matter Collected 476 | 244 232 . . Remotely . | . . . . Salvage Created 620 | . 487 . 133 Parts 42 | . 35 . 7 Haulers Intercepted 1 | . 1 . . Recyclers Shooed 2 | . 2 . . Parts Field Recycled . | . . . . Retrieved Matter . | . . . . Parts Self-Destructed . | . . . . Prevented . | . . . . Kills | -11 -10 -10 -10 ------- Run | Yrd Mat Min Exi Combat Hostiles Destroyed 15 | . 10 . 5 Guns 12 | . 10 . 2 AOE 3 | . . . 3 Classes Destroyed 7 | . 6 . 1 Hauler 1 | . 1 . . Recycler 1 | . 1 . . Operator 2 | . 2 . . Watcher 3 | . 3 . . Swarmer 6 | . 6 . . Grunt 8 | . 4 . 4 Hunter 1 | . . . 1 Best Kill Streak 4 | . 4 . 4 Combat Bots Only 4 | . 3 . 4 Max Kills in Single Turn 2 | . 1 . 2 Gunslinging . | . . . . Exploded 2 | . . . 2 Melee . | . . . . Uniques/NPCs Destroyed . | . . . . Combat | -11 -10 -10 -10 -------- Run | Yrd Mat Min Exi Hostile Shots Fired 149 | . 59 . 90 Missed 44 | . 15 . 29 Damage Taken 1374 | . 446 . 928 Core 260 | . 57 . 203 Absorbed by Shields . | . . . . Core Remaining (%) 100 | 100 . . . Volleys Fired 94 | . 75 . 19 Largest 2 | . 2 . 2 Hottest 60 | . 40 . 60 Shots Fired 186 | . 150 . 36 Gun 182 | . 150 . 32 Cannon . | . . . . Launcher 4 | . . . 4 Special . | . . . . Kinetic 182 | . 150 . 32 Thermal . | . . . . Explosive 4 | . . . 4 Electromagnetic . | . . . . Robot Hit Streak 13 | . 13 . 4 Robot Miss Streak 6 | . 6 . 3 Penetration Max . | . . . . Secondary Targets 1 | . . . 1 Max Gunslinging Chain 1 | . . . 1 Shots Hit Robots 115 | . 93 . 22 Core Hits 51 | . 37 . 14 Critical Kills 1 | . 1 . . Critical Parts Destroyed 2 | . 1 . 1 Critical Strikes 3 | . 2 . 1 Destroy 3 | . 2 . 1 Melee Attacks . | . . . . Impact . | . . . . Slashing . | . . . . Piercing . | . . . . Sneak Attacks . | . . . . Combat Hostiles . | . . . . Follow-up Attacks . | . . . . Damage Inflicted 1122 | . 739 . 383 Guns 904 | . 739 . 165 Cannons . | . . . . Explosions 218 | . . . 218 Melee . | . . . . Ramming . | . . . . Kinetic 904 | . 739 . 165 Thermal . | . . . . Explosive 218 | . . . 218 Electromagnetic . | . . . . Impact . | . . . . Slashing . | . . . . Piercing . | . . . . Highest Corruption 2 | . . . 2 Average Corruption 1 | . . . 1 Corruption Purged . | . . . . Corruption Blocked . | . . . . Overload Shots . | . . . . Overflow Damage 9 | . . . 9 Projectiles . | . . . . Explosions 9 | . . . 9 Melee . | . . . . Knockbacks . | . . . . Impact . | . . . . Kinetic . | . . . . Secondary . | . . . . Self-Inflicted Damage . | . . . . Shots . | . . . . Rammed 1 | . 1 . . Targets Rammed 1 | . 1 . . Kicked . | . . . . Crushed . | . . . . Highest Temperature 12 | . 12 . 12 Average Temperature 7 | . 7 . 6 Received Heat Transfer 228 | . 156 . 72 Siege Activations . | . . . . Robots Corrupted . | . . . . Combat Hostiles . | . . . . Parts Fried . | . . . . Impact Corruptions . | . . . . Robots Melted . | . . . . Combat Hostiles . | . . . . Parts Melted . | . . . . Heat Transferred . | . . . . Parts Sabotaged . | . . . . Parts Stolen . | . . . . Parts Stripped . | . . . . Power Chain Reactions . | . . . . Alert | -11 -10 -10 -10 ------- Run | Yrd Mat Min Exi Peak Influence 194 | . 194 70 . Initial 70 | . . 70 . Average 93 | . 100 70 . Maximum Alert Level . | . . . . Low Security (%) 100 | 100 100 100 . Level 1 . | . . . . Level 2 . | . . . . Level 3 . | . . . . Level 4 . | . . . . Level 5 . | . . . . High Security . | . . . . Max Security . | . . . . Squads Dispatched 1 | . 1 . . Investigation . | . . . . Extermination . | . . . . Reinforcement 1 | . 1 . . Assault . | . . . . Garrison . | . . . . Intercept . | . . . . Searches Triggered . | . . . . Construction Impeded . | . . . . Haulers Reinforced . | . . . . Active Scanning Responses . | . . . . Cargo Convoy Interrupts . | . . . . Stealth | -11 -10 -10 -10 --------- Run | Yrd Mat Min Exi Distress Signals 1 | . 1 . . Communications Jammed . | . . . . Distress Signals . | . . . . Times Spotted 46 | . 32 . 14 Peak Tracking Total 15 | . 3 . 15 Tactical Retreats 9 | . 8 . 1 Traps | -11 -10 -10 -10 ------- Run | Yrd Mat Min Exi Traps Triggered . | . . . . Indirectly . | . . . . Trap Hack Attempts . | . . . . Triggered . | . . . . Disarmed 7 | . 7 . . Reprogrammed . | . . . . Reused . | . . . . Traps Extracted . | . . . . Installed . | . . . . Triggered . | . . . . Machines | -11 -10 -10 -10 ---------- Run | Yrd Mat Min Exi Machines Disabled 1 | . . . 1 Max in Single Turn 1 | . . . 1 Machines Repaired . | . . . . Machines Dismantled . | . . . . Machines Sabotaged . | . . . . Overloaded Fab Kills . | . . . . Hacking | -11 -10 -10 -10 --------- Run | Yrd Mat Min Exi Machines Accessed 6 | . 5 . 1 Terminals 5 | . 5 . . Fabricators . | . . . . Repair Stations . | . . . . Recycling Units . | . . . . Scanalyzers . | . . . . Garrison Access . | . . . . Total Hacks 14 | . 13 . 1 Successful 4 | . 3 . 1 Failed 10 | . 10 . . Catastrophic 2 | . 2 . . Database Lockouts . | . . . . Manual 13 | . 12 . 1 Terminals 13 | . 13 . . Fabricators . | . . . . Repair Stations . | . . . . Recycling Units . | . . . . Scanalyzers . | . . . . Garrison Access . | . . . . Terminal Hacks 4 | . 3 . 1 Disarm Traps 2 | . 2 . . Hauler Manifests 1 | . 1 . . Derelict Proto ID Bank 1 | . . . 1 Fabricator Hacks . | . . . . Repair Station Hacks . | . . . . Recycling Unit Hacks . | . . . . Scanalyzer . | . . . . Garrison Access Hacks . | . . . . Unauthorized Hacks . | . . . . Terminals . | . . . . Fabricators . | . . . . Repair Stations . | . . . . Recycling Units . | . . . . Scanalyzers . | . . . . Garrison Access . | . . . . Data Cores Recovered 1 | . 1 . . Used . | . . . . Hacking Detections 5 | . 5 . . Full Trace Events . | . . . . Feedback Events . | . . . . Feedback Blocked . | . . . . Robot Schematics Acquired . | . . . . Robots Built . | . . . . Authchips . | . . . . Time . | . . . . Total Robot Build Rating . | . . . . Part Schematics Acquired . | . . . . Parts Built . | . . . . Authchips . | . . . . Time . | . . . . Total Part Build Rating . | . . . . Parts Repaired . | . . . . Time . | . . . . Parts Recycled . | . . . . Recycled Matter . | . . . . Retrieved Matter . | . . . . Retrieved Components . | . . . . Parts Scanalyzed . | . . . . Part Schematics Acquired . | . . . . Parts Damaged . | . . . . Bothacking | -11 -10 -10 -10 ------------ Run | Yrd Mat Min Exi Used RIF Installer . | . . . . Robots Hacked . | . . . . Non-combat . | . . . . Combat . | . . . . Robot Hacks Applied . | . . . . Relay Couplers Released . | . . . . Fabnet Peak Effective % . | . . . . Robots Rewired . | . . . . Allies Hacked . | . . . . Hacks Repelled . | . . . . Allies | -11 -10 -10 -10 -------- Run | Yrd Mat Min Exi Total Allies . | . . . . Largest Group . | . . . . Highest-Rated Group . | . . . . Highest-Rated Ally . | . . . . Total Orders . | . . . . Ally Attacks . | . . . . Total Damage . | . . . . Kills . | . . . . Allies Corrupted . | . . . . Allies Melted . | . . . . Intel | -11 -10 -10 -10 ------- Run | Yrd Mat Min Exi Robot Analysis Total . | . . . . Derelict Logs Recovered . | . . . . Drone Launches . | . . . . Drone Recoveries . | . . . . Exploration | -11 -10 -10 -10 ------------- Run | Yrd Mat Min Exi Turns Passed 2365 | 64 1571 239 491 Spaces Moved 970 | 38 653 100 179 Core 9 | 9 . . . Treads 948 | 17 653 100 178 Legs 13 | 12 . . 1 Wheels . | . . . . Hover . | . . . . Flight . | . . . . Fastest Speed 50 | 50 160 240 240 Average Speed 212 | 121 206 240 240 Slowest Speed 260 | 160 240 240 260 Overloaded Moves . | . . . . Propulsion Burnouts . | . . . . Robots Hopped . | . . . . Cave-ins Triggered . | . . . . Exploration Rate (%) 42 | 3 84 42 40 Regions Visited 3 Branch Regions 2 Pre-discovered Areas . | . . . . Known Exits Taken 2 | . 1 1 . Unknown Exits Taken 1 | 1 . . . Scrap Searched 1 | . . 1 . Spaces Dug . | . . . . Terrain Destroyed 9 | . . . 9 Melee . | . . . . Projectile . | . . . . AOE 9 | . . . 9 Terrain Rammed . | . . . . Walls Destroyed . | . . . . Machines Disabled . | . . . . Actions | -11 -10 -10 -10 --------- Run | Yrd Mat Min Exi Total 1119 | 53 758 100 208 Wait 1 | . 1 . . Move 967 | 37 652 99 179 Hop . | . . . . Pick Up 28 | 8 18 1 1 Fast Attach 5 | 4 1 . . Attach 9 | 2 2 . 5 Detach . | . . . . Swap 8 | 2 3 . 3 Drop 6 | . 5 . 1 Fire 94 | . 75 . 19 Melee . | . . . . Ram . | . . . . Kick . | . . . . Crush 1 | . 1 . . Escape Stasis . | . . . . Rewire . | . . . . Trap . | . . . . Miscellaneous . | . . . . Route ------- -11/Scrapyard -10/Materials (discovered 4 exits: [*Mat x3] / *Min) -10/Mines -10/Exiles History --------- Turn | Location | Event 12 | -11/Scrapyard | Discovered new exit (range 16) 65 | -11/Scrapyard | Entered Materials 272 | -10/Materials | Discovered new exit (range 13) 305 | -10/Materials | Build established: Mutant 770 | -10/Materials | Discovered new exit (range 3) 1053 | -10/Materials | Discovered new exit (range 15) 1053 | -10/Materials | Discovered new exit (range 13) 1634 | -10/Materials | Identified exit to Mines 1636 | -10/Materials | Entered Mines 1863 | -10/Mines | Deemed a non-threat by the Exiles lab entrance 1865 | -10/Mines | Discovered new exit (range 5) 1873 | -10/Mines | Identified exit to Exiles 1875 | -10/Mines | Entered Exiles 1935 | -10/Exiles | Met 8R-AWN 1974 | -10/Exiles | Met EX-HEX 2046 | -10/Exiles | Met EX-BIN 2072 | -10/Exiles | Aligned with FarCom system 2075 | -10/Exiles | Given EX-Vault access code 2130 | -10/Exiles | Opened EX-Vault 2149 | -10/Exiles | Found Trap Reconfigurator 2202 | -10/Exiles | Warned to stay clear of 0b10 Research branches 2230 | -10/Exiles | Exiles lab attacked by MAIN.C 2332 | -10/Exiles | Lost 6 allies 2334 | -10/Exiles | Core integrity fell below 50% 2358 | -10/Exiles | Core integrity fell below 20% 2366 | -10/Exiles | Destroyed by P-60 Hacker with Shock Rifle Last Messages --------------- Machine disabled. G-34 Mercenary destroyed. Penetrated by Slug. The unstable cave ceiling collapses. H-55 Commando suffers critical hit (Destroy). Destroyed Assault Rifle. Penetrated by Slug. Lgt. Treads destroyed. H-55 Commando suffers critical hit (Destroy). H-55 Commando destroyed. Penetrated by Slug. The unstable cave ceiling collapses. Lgt. Assault Rifle destroyed. Penetrated by Slug. The unstable cave ceiling collapses. Slug penetrates Machine. Penetrated by Slug. H-55 Commando destroyed. Switching to secondary target: P-60 Hacker. Aluminum Leg destroyed. Map ----- +----------------------------------------------------+ | ??????#" """#?????????????????????????? | | ??????#" """#?????????????????????????? | | ??????#" """#?????????????????????????? | | ??????#" """#?????????????????????????? | | ??????## """"?????????????????????????? | | ???????# """#?????????????????????????? | | ???????#" "X" """"?????????????????????????? | | ???????#" """ #?????????????????????????? | | ???????#" """""""""#?????????????????????????? | | ??????##" ###########?????????????????????????? | | ?????##"" #???????????????????????????????????? | | ????##"" #???????????????????????????????????? | | ????"""" ##??????????????????????????????????? | | ??" " "" ##???###########???????????????????? | | ?"" " #####"""""""""##??????????????????? | | " " """ """"##?????????????????? | | "" " #?????????????????? | | " """#?????????????????? | | "a"#???????????#####?? | | " "###????????##" #?? | | "" ##???????#" #?? | | """""" " ###????##" ##? | | ? ######""" #??### ## | | ?""#?????#####""" ###?# | | ?????????????##""" ### | | ??????????????#" @ ! gp | | ??????????????# %!=%%pgh* ## | | ?????????????#"" !%=g%p%%= #### | | ????????????"" %=[p== "#?#"""" | | ???????????" "##?##### | | ??????????? # ##??????? | | ??????????? #?????????? | | ?????????? " ###?????????? | | ?????????? "" """ ####??????????? | | ?????????? ##""" " " ""#" ##?????????????? | | ?????????????####""" """##"" # #?????????????? | | ????????????????###""""#?#### # ####?????????????? | | ??????????????????###????????####????????????????? | | ?????????????????????????????????????????????????? | | ?????????????????????????????????????????????????? | | ?????????????????????????????????????????????????? | | ?????????????????????????????????????????????????? | | ?????????????????????????????????????????????????? | | ?????????????????????????????????????????????????? | | ?????????????????????????????????????????????????? | | ?????????????????????????????????????????????????? | | ?????????????????????????????????????????????????? | | ?????????????????????????????????????????????????? | | ?????????????????????????????????????????????????? | | ?????????????????????????????????????????????????? | +----------------------------------------------------+ Best States ------------- Heat Dissipation 25 Energy Generation 10 Energy Capacity 250 Matter Stores 300 Matter Capacity 300 Sight Range 16 Terrain Scan Density 10 Evasion (%) 50 Recoil Reduction 2 Item Schematics ----------------- None Robot Schematics ------------------ None Fabricated ------------ Nothing Alien Tech Used ----------------- None Achievements -------------- None Challenges ------------ None Game ------ Seed ExperimentalSalvagingPod Manual? 0 Play Time 00:14:07 Cumulative 20.2 hours Start 2025.03.19 @ 16:44:30 End 2025.03.19 @ 16:56:04 Sessions 1 Manual Loads 0 Difficulty Rogue Special Mode None Game No. 33 Rogue 33 Adventurer 0 Explorer 0 Win Type - Total 0 Types 0/0/0/0/0/0/0/0/0 Lore% 12 Gallery% 22 Achievement% 21 Wizard Run 0 Options --------- Layout 1 ASCII 0 Keyboard 0 Movement Mouse Keybinds 0 Fullscreen 1 Font 32/SmallcapsGlow Map View 50x40 Zoom Use 0% Tactical HUD 0 Map Filters NONE Filters NONE Steam 1 RUN: 3303ca21-b611-4b69-9c7b-afd9c81012e7